bitfinex/quotes_SOLUSD_20250527
["timestamp","ask_amount","ask_price","bid_price","bid_amount"]
[1748369733268,0.55934668,178.78,178.74,21.14574552]
[1748369733561,0.55934668,178.78,178.77,21.14574552]
[1748369734438,1.95742417,178.81,178.77,21.14574552]
[1748369734931,0.55925283,178.81,178.79,21.14574552]
[1748369735131,0.55925283,178.81,178.78,21.14574552]
[1748369735328,0.55925283,178.81,178.77,21.14574552]
[1748369736558,1.95738492,178.81,178.77,21.14574552]
[1748369738254,1.95738492,178.81,178.78,21.14574552]
[1748369738453,1.95738492,178.81,178.79,21.14574552]
[1748369738772,0.55925283,178.81,178.8,63.04774552]
[1748369740257,1.95711283,178.84,178.8,63.04774552]
[1748369740460,23.10285835,178.84,178.79,56.54574552]
[1748369742259,1.95711283,178.84,178.8,21.14574552]
[1748369744739,23.10285835,178.84,178.79,56.54574552]
[1748369747161,23.40255681,178.84,178.76,6.502]
[1748369747359,21.14574552,178.82,178.77,21.14574552]
[1748369748366,1.95738492,178.81,178.77,21.14574552]
[1748369749461,1.95738492,178.81,178.78,21.14574552]
[1748369749968,1.95738492,178.81,178.76,41.882]
[1748369750169,21.14574552,178.8,178.76,41.882]
[1748369750658,1.95738492,178.81,178.76,63.02774552]
[1748369750863,1.95738492,178.81,178.77,21.14574552]
[1748369752761,1.95738492,178.81,178.78,21.14574552]
[1748369753450,1.95738492,178.81,178.77,21.14574552]
[1748369753649,1.95738492,178.81,178.78,21.14574552]
[1748369754268,1.39813209,178.81,178.78,21.14574552]
[1748369754775,1.39813209,178.81,178.77,21.14574552]
[1748369755270,1.39813209,178.81,178.76,6.502]
[1748369755271,1.39813209,178.81,178.78,21.14574552]
[1748369756260,0.55919029,178.83,178.8,21.14574552]
[1748369757471,1.39794816,178.84,178.8,21.14574552]
[1748369758966,1.39794816,178.84,178.79,56.52574552]
[1748369759761,1.39794816,178.84,178.8,21.14574552]
[1748369760069,21.14574552,178.83,178.77,21.14574552]
[1748369760374,21.14574552,178.83,178.77,56.52574552]
[1748369760582,23.10302098,178.82,178.77,56.52574552]
[1748369761151,23.10302098,178.82,178.76,27.64774552]
[1748369761351,23.10302098,178.82,178.76,63.02774552]
[1748369761653,21.14574552,178.81,178.76,63.02774552]
[1748369762469,1.9574944,178.8,178.76,41.882]
[1748369762774,0.55928411,178.8,178.79,21.14574552]
[1748369764473,1.95722823,178.83,178.79,21.14574552]
[1748369764660,1.95722823,178.83,178.78,21.14574552]
[1748369764866,21.14574552,178.82,178.77,21.14574552]
[1748369765517,1.95722823,178.83,178.77,21.14574552]
[1748369765652,1.95722823,178.83,178.79,21.14574552]
[1748369766281,23.10297375,178.83,178.78,21.14574552]
[1748369767678,25.89892521,178.83,178.78,21.14574552]
[1748369771397,4.75317969,178.83,178.78,21.14574552]
[1748369773271,4.75317969,178.83,178.75,90.5611]
[1748369773272,21.14574552,178.79,178.75,90.5611]
[1748369773580,21.14574552,178.78,178.73,21.14574552]
[1748369773792,21.14574552,178.81,178.76,21.14574552]
[1748369773989,18.64964886,178.82,178.76,21.14574552]
[1748369774169,39.79539438,178.82,178.76,21.14574552]
[1748369774361,21.14574552,178.81,178.76,21.14574552]
[1748369774760,1.9574944,178.8,178.76,21.14574552]
[1748369774987,1.9574944,178.8,178.75,21.14574552]
[1748369776490,1.9574944,178.8,178.76,21.14574552]
[1748369776690,1.9574944,178.8,178.78,21.14574552]
[1748369777175,1.9574944,178.8,178.77,35.36]
[1748369781984,21.14574552,178.79,178.77,35.36]
[1748369782185,23.10323992,178.8,178.77,35.36]
[1748369783288,25.8996605,178.8,178.74,21.14574552]
[1748369783596,21.14574552,178.79,178.74,56.50574552]
[1748369784099,1.95771338,178.78,178.74,56.50574552]
[1748369786579,1.95771338,178.78,178.75,21.14574552]
[1748369787090,1.95771338,178.78,178.77,21.14574552]
[1748369787591,1.95738492,178.81,178.77,21.14574552]
[1748369787896,1.95738492,178.81,178.8,21.14574552]
[1748369788576,1.95738492,178.81,178.79,21.14574552]
[1748369789188,1.39813209,178.81,178.79,21.14574552]
[1748369790001,1.39813209,178.81,178.78,56.50574552]
[1748369791197,1.39813209,178.81,178.78,35.36]
[1748369792574,1.95738492,178.81,178.78,35.36]
[1748369792776,1.95738492,178.81,178.78,56.50574552]
[1748369794799,2.79595146,178.83,178.79,21.14574552]
[1748369795281,23.94169698,178.83,178.78,56.50574552]
[1748369795482,21.14574552,178.82,178.78,35.36]
[1748369795692,23.94169698,178.83,178.78,56.50574552]
[1748369796700,23.94169698,178.83,178.76,21.14574552]
[1748369796701,21.14574552,178.81,178.76,21.14574552]
[1748369796884,21.14574552,178.81,178.77,35.34]
[1748369797796,0.55928411,178.8,178.77,35.34]
[1748369799711,0.55928411,178.8,178.76,21.14574552]
[1748369799916,21.14574552,178.78,178.73,1.579]
[1748369800201,21.14574552,178.76,178.72,6.2497]
[1748369802510,0.55944055,178.75,178.72,6.2497]
[1748369802804,0.55944055,178.75,178.72,27.39544552]
[1748369804006,0.55944055,178.75,178.74,21.14574552]
[1748369804305,0.55944055,178.75,178.72,27.39544552]
[1748369804486,0.55944055,178.75,178.72,6.2497]
[1748369804686,25.90099025,178.75,178.69,26.0]
[1748369804902,21.14574552,178.72,178.68,6.4235]
[1748369805104,21.14574552,178.7,178.65,30.68574552]
[1748369805306,21.14574552,178.71,178.66,21.14574552]
[1748369805483,21.14574552,178.71,178.66,56.48574552]
[1748369806609,1.95858981,178.7,178.66,56.48574552]
[1748369806810,1.95858981,178.7,178.66,21.14574552]
[1748369807111,1.95858981,178.7,178.66,56.48574552]
[1748369807311,23.10433533,178.7,178.66,35.34]
[1748369807607,1.95858981,178.7,178.66,56.48574552]
[1748369808404,21.14574552,178.69,178.63,7.9563]
[1748369808593,23.10488349,178.65,178.6,33.89774652]
[1748369808791,21.14574552,178.64,178.6,48.092001]
[1748369809095,21.14574552,178.64,178.6,3.232001]
[1748369810889,0.55981638,178.63,178.6,3.232001]
[1748369811688,0.55981638,178.63,178.61,21.14574552]
[1748369811889,0.55969105,178.67,178.62,21.14574552]
[1748369812109,0.55969105,178.67,178.65,21.14574552]
[1748369813197,1.95885624,178.68,178.64,56.48574552]
[1748369814103,1.95885624,178.68,178.65,21.14574552]
[1748369814302,1.95885624,178.68,178.66,21.14574552]
[1748369814303,0.55965972,178.68,178.66,21.14574552]
[1748369814508,0.55965972,178.68,178.67,21.14574552]
[1748369814990,0.55965972,178.68,178.67,27.28344552]
[1748369815407,1.95852345,178.71,178.67,27.28344552]
[1748369816817,0.55947185,178.74,178.7,21.14574552]
[1748369816993,0.55947185,178.74,178.72,21.14574552]
[1748369817318,0.55947185,178.74,178.73,21.14574552]
[1748369818833,0.55947185,178.74,178.71,21.14574552]
[1748369819118,1.95804194,178.75,178.71,21.14574552]
[1748369819487,1.95804194,178.75,178.7,56.50574552]
[1748369819488,21.14574552,178.74,178.7,56.50574552]
[1748369820213,21.14574552,178.74,178.7,35.36]
[1748369820416,1.95804194,178.75,178.7,56.50574552]
[1748369820618,1.95804194,178.75,178.71,21.14574552]
[1748369820931,1.95760388,178.79,178.72,21.14574552]
[1748369821219,21.14574552,178.78,178.73,21.14574552]
[1748369821420,1.95760388,178.79,178.73,21.14574552]
[1748369821719,23.1033494,178.79,178.74,21.14574552]
[1748369822520,1.95760388,178.79,178.76,21.14574552]
[1748369823121,1.39828849,178.79,178.76,21.14574552]
[1748369824111,23.10302098,178.82,178.76,21.14574552]
[1748369824421,21.14574552,178.81,178.76,21.14574552]
[1748369824722,21.14574552,178.8,178.76,21.14574552]
[1748369825226,1.95727546,178.82,178.78,21.14574552]
[1748369825425,0.55922156,178.82,178.79,21.14574552]
[1748369826104,1.95716602,178.83,178.79,21.14574552]
[1748369826413,1.95716602,178.83,178.74,179.15134552]
[1748369826414,21.14574552,178.81,178.76,35.34]
[1748369826616,18.64964886,178.76,178.69,6.157]
[1748369826821,21.14574552,178.75,178.7,21.14574552]
[1748369827027,21.14574552,178.76,178.71,21.14574552]
[1748369827410,18.64964886,178.78,178.7,21.14574552]
[1748369827411,21.14574552,178.75,178.7,21.14574552]
[1748369827614,21.14574552,178.75,178.7,35.34]
[1748369827917,21.14574552,178.75,178.7,56.48574552]
[1748369828126,0.55947185,178.74,178.71,21.14574552]
[1748369829319,1.39861176,178.75,178.71,21.14574552]
[1748369829513,1.39861176,178.75,178.7,56.48574552]
[1748369830605,1.95805231,178.75,178.7,56.48574552]
[1748369832826,23.10379783,178.75,178.7,56.48574552]
[1748369833306,1.95805231,178.75,178.71,21.14574552]
[1748369833512,23.10379783,178.75,178.7,56.48574552]
[1748369835029,23.10379783,178.75,178.7,35.34]
[1748369835220,21.14574552,178.74,178.69,6.157]
[1748369835421,21.14574552,178.74,178.69,41.477]
[1748369835606,21.14574552,178.73,178.69,41.477]
[1748369835927,21.14574552,178.74,178.69,62.62274552]
[1748369837225,0.55950316,178.73,178.69,62.62274552]
[1748369838943,0.55937797,178.77,178.72,21.14574552]
[1748369839111,0.55937797,178.77,178.73,21.14574552]
[1748369839514,0.55928411,178.8,178.75,21.14574552]
[1748369839713,21.70502963,178.8,178.75,21.14574552]
[1748369840511,0.55928411,178.8,178.75,21.14574552]
[1748369840723,21.14574552,178.79,178.74,56.46574552]
[1748369842032,0.55934668,178.78,178.74,56.46574552]
[1748369842628,21.14574552,178.77,178.73,26.0]
[1748369842938,1.95771338,178.78,178.73,61.32]
[1748369843147,23.1034589,178.78,178.74,21.14574552]
[1748369843323,1.95771338,178.78,178.74,21.14574552]
[1748369843509,0.55934668,178.78,178.76,21.14574552]
[1748369844021,0.55928411,178.8,178.76,21.14574552]
[1748369845339,0.55928411,178.8,178.77,21.14574552]
[1748369845543,1.39817648,178.81,178.77,21.14574552]
[1748369845737,22.543922,178.81,178.77,21.14574552]
[1748369846035,1.39817648,178.81,178.77,21.14574552]
[1748369847645,1.95742931,178.81,178.77,21.14574552]
[1748369849523,21.14574552,178.79,178.74,35.3]
[1748369849845,21.14574552,178.79,178.74,56.44574552]
[1748369850054,21.14574552,178.77,178.73,89.0]
[1748369850558,21.14574552,178.78,178.73,89.0]
[1748369850856,21.14574552,178.78,178.72,56.44574552]
[1748369850857,18.64964886,178.8,178.75,21.14574552]
[1748369851044,1.95760388,178.79,178.75,21.14574552]
[1748369852253,0.55931539,178.79,178.76,21.14574552]
[1748369852958,0.55925283,178.81,178.77,21.14574552]
[1748369853145,0.55925283,178.81,178.77,56.44574552]
[1748369853959,0.55925283,178.81,178.78,21.14574552]
[1748369855159,1.95731718,178.82,178.78,21.14574552]
[1748369855585,23.1030627,178.82,178.77,56.44574552]
[1748369856360,1.95731718,178.82,178.78,21.14574552]
[1748369856557,0.55922156,178.82,178.8,21.14574552]
[1748369856757,0.55922156,178.82,178.81,21.14574552]
[1748369857146,1.95699956,178.85,178.81,21.14574552]
[1748369858251,159.4,178.91,178.86,26.0]
[1748369858252,0.55894024,178.91,178.86,26.0]
[1748369858452,0.55885342,178.94,178.9,21.14574552]
[1748369858657,21.14574552,178.98,178.93,21.14574552]
[1748369859066,21.14574552,178.97,178.92,56.44574552]
[1748369859268,0.55872164,178.98,178.92,56.44574552]
[1748369859576,21.14574552,178.97,178.92,56.44574552]
[1748369859865,0.55872164,178.98,178.94,21.14574552]
[1748369860053,21.70446716,178.98,178.93,21.14574552]
[1748369860367,21.14574552,178.97,178.92,56.44574552]
[1748369861365,0.55878408,178.96,178.92,56.44574552]
[1748369863262,21.14574552,178.94,178.88,9.5]
[1748369863477,0.55887777,178.93,178.9,35.28]
[1748369865763,0.55887777,178.93,178.92,21.14574552]
[1748369867065,1.95566699,178.97,178.92,21.14574552]
[1748369867653,23.10141251,178.97,178.92,21.14574552]
[1748369868260,1.95566699,178.97,178.92,21.14574552]
[1748369868471,23.10141251,178.97,178.92,21.14574552]
[1748369868650,1.95566699,178.97,178.92,21.14574552]
[1748369868849,1.95566699,178.97,178.93,21.14574552]
[1748369869559,0.55875286,178.97,178.93,21.14574552]
[1748369869859,12.5,178.99,178.96,21.14574552]
[1748369870183,12.5,178.99,178.95,32.5983]
[1748369870184,12.5,178.99,178.98,21.14574552]
[1748369870556,13.05869042,178.99,178.98,21.14574552]
[1748369870965,13.05869042,178.99,178.97,56.40574552]
[1748369873872,13.05869042,178.99,178.97,35.26]
[1748369874069,13.05869042,178.99,178.97,56.40574552]
[1748369874772,13.05869042,178.99,178.98,21.14574552]
[1748369875350,12.5,178.99,178.98,47.14574552]
[1748369877252,12.5,178.99,178.98,82.38574552]
[1748369879374,13.05869042,178.99,178.98,82.38574552]
[1748369880676,12.5,178.99,178.98,82.38574552]
[1748369884981,12.5,178.99,178.98,61.24]
[1748369885181,13.05869042,178.99,178.98,61.24]
[1748369885770,13.05869042,178.99,178.98,82.38574552]
[1748369887088,12.5,178.99,178.98,82.38574552]
[1748369887463,12.5,178.99,178.98,171.38574552]
[1748369887777,13.05869042,178.99,178.98,171.38574552]
[1748369888087,13.05869042,178.99,178.98,150.24]
[1748369888389,13.05869042,178.99,178.98,171.38574552]
[1748369888767,13.05869042,178.99,178.98,136.14574552]
[1748369888969,13.05869042,178.99,178.98,171.36574552]
[1748369889187,13.05869042,178.99,178.96,9.48]
[1748369889368,21.14574552,178.98,178.96,9.48]
[1748369889770,21.14574552,178.97,178.96,9.48]
[1748369890070,0.55878408,178.96,178.92,21.14574552]
[1748369890372,21.14574552,178.95,178.91,9.48]
[1748369890681,21.14574552,178.95,178.92,35.22]
[1748369890883,23.10148981,178.96,178.92,35.22]
[1748369891087,35.0425124,178.99,178.94,21.14574552]
[1748369891389,0.55872164,178.98,178.96,21.14574552]
[1748369891588,0.55872164,178.98,178.96,56.36574552]
[1748369891767,0.55872164,178.98,178.96,35.22]
[1748369892286,0.55872164,178.98,178.96,56.36574552]
[1748369893076,13.05869111,178.99,178.96,56.36574552]
[1748369893277,13.05869111,178.99,178.97,21.14574552]
[1748369893869,13.05869111,178.99,178.96,35.22]
[1748369894168,13.05869111,178.99,178.97,21.14574552]
[1748369894982,12.5,178.99,178.97,21.14574552]
[1748369895288,12.5,178.99,178.98,21.14574552]
[1748369897593,12.5,178.99,178.98,27.74574552]
[1748369901199,12.5,178.99,178.98,27.24574552]
[1748369904987,12.5,178.99,178.98,20.64574552]
[1748369905189,12.5,178.99,178.98,109.64574552]
[1748369906207,12.5,178.99,178.98,89.0]
[1748369906413,12.5,178.99,178.98,110.14574552]
[1748369909890,34.20443594,178.99,178.96,9.46]
[1748369910111,21.14574552,178.97,178.94,89.0]
[1748369910290,0.55878408,178.96,178.94,124.2]
[1748369911414,21.14574552,178.95,178.91,9.46]
[1748369911591,21.14574552,178.94,178.87,93.45808588]
[1748369911797,21.14574552,178.9,178.86,89.0]
[1748369912011,21.14574552,178.89,178.86,35.2]
[1748369912320,0.55903398,178.88,178.86,35.2]
[1748369916218,0.55903398,178.88,178.85,47.14574552]
[1748369916413,0.55903398,178.88,178.85,82.34574552]
[1748369916719,0.55903398,178.88,178.85,47.14574552]
[1748369916922,0.55900273,178.89,178.85,82.34574552]
[1748369918221,21.14574552,178.89,178.85,26.0]
[1748369918430,21.14574552,178.88,178.85,61.2]
[1748369918799,21.14574552,178.88,178.85,26.0]
[1748369919108,21.14574552,178.86,178.83,35.46]
[1748369919826,21.14574552,178.86,178.83,26.0]
[1748369920010,21.14574552,178.84,178.8,6.5908]
[1748369920207,18.64964886,178.88,178.81,21.14574552]
[1748369920406,21.14574552,178.85,178.81,21.14574552]
[1748369921429,21.14574552,178.86,178.81,21.14574552]
[1748369922322,0.55912776,178.85,178.81,21.14574552]
[1748369922701,21.14574552,178.84,178.79,65.67409867]
[1748369922901,0.55912776,178.85,178.81,21.14574552]
[1748369923730,21.70487328,178.85,178.8,21.14574552]
[1748369924117,21.70487328,178.85,178.79,65.67409867]
[1748369924309,0.55906524,178.87,178.81,21.14574552]
[1748369924524,0.55906524,178.87,178.83,21.14574552]
[1748369925035,0.55906524,178.87,178.82,21.14574552]
[1748369925209,21.70481076,178.87,178.82,21.14574552]
[1748369927238,21.70481076,178.87,178.81,35.22]
[1748369927409,21.14574552,178.86,178.81,56.36574552]
[1748369928035,0.55912776,178.85,178.81,56.36574552]
[1748369928638,21.70487328,178.85,178.8,21.14574552]
[1748369928813,23.10269268,178.85,178.8,145.36574552]
[1748369930213,23.10269268,178.85,178.8,124.22]
[1748369930418,21.14574552,178.84,178.8,124.22]
[1748369930656,23.10269268,178.85,178.8,110.14574552]
[1748369931334,21.14574552,178.82,178.78,9.46]
[1748369931537,21.14574552,178.81,178.78,44.68]
[1748369931739,21.14574552,178.82,178.78,9.46]
[1748369932438,0.55925283,178.81,178.78,9.46]
[1748369933139,0.55925283,178.81,178.78,30.60574552]
[1748369933516,18.64964886,178.88,178.79,21.14574552]
[1748369933517,1.95679173,178.87,178.79,21.14574552]
[1748369933718,21.14574552,178.85,178.8,21.14574552]
[1748369933936,21.14574552,178.85,178.79,89.0]
[1748369933937,21.14574552,178.83,178.79,89.0]
[1748369934138,21.14574552,178.81,178.78,9.46]
[1748369934323,21.14574552,178.81,178.77,124.22]
[1748369934530,0.55928411,178.8,178.77,124.22]
[1748369934718,0.55928411,178.8,178.77,89.0]
[1748369935536,0.55928411,178.8,178.77,110.14574552]
[1748369936737,0.55925283,178.81,178.77,110.14574552]
[1748369940448,0.55925283,178.81,178.78,21.14574552]
[1748369940648,0.55922156,178.82,178.78,21.14574552]
[1748369942149,21.70496708,178.82,178.77,89.0]
[1748369942350,21.14574552,178.81,178.77,89.0]
[1748369942525,21.14574552,178.78,178.72,89.0]
[1748369942840,21.14574552,178.78,178.73,37.06394552]
[1748369943839,0.55937797,178.77,178.73,37.06394552]
[1748369944623,0.55925283,178.81,178.74,21.14574552]
[1748369944855,21.14574552,178.79,178.74,21.14574552]
[1748369945859,1.6602,178.84,178.77,21.14574552]
[1748369946032,21.70490454,178.84,178.79,21.14574552]
[1748369946355,21.70481076,178.87,178.81,21.14574552]
[1748369946564,0.55906524,178.87,178.82,21.14574552]
[1748369946888,21.14574552,178.9,178.85,21.14574552]
[1748369947033,21.70468576,178.91,178.85,21.14574552]
[1748369947232,21.14574552,178.89,178.84,21.14574552]
[1748369948039,21.14574552,178.9,178.85,21.14574552]
[1748369948455,3.05782284,178.97,178.89,21.14574552]
[1748369948763,3.05782284,178.97,178.88,26.0]
[1748369948764,21.7045296,178.96,178.91,21.14574552]
[1748369949151,0.55878408,178.96,178.91,21.14574552]
[1748369949561,21.7045296,178.96,178.91,21.14574552]
[1748369952350,21.14574552,178.96,178.91,21.14574552]
[1748369953189,0.55872164,178.98,178.92,21.14574552]
[1748369953369,21.70446716,178.98,178.93,21.14574552]
[1748369954783,0.55872164,178.98,178.94,21.14574552]
[1748369955281,21.70446716,178.98,178.93,21.14574552]
[1748369955484,0.55872164,178.98,178.94,21.14574552]
[1748369959676,12.5,178.99,178.97,21.14574552]
[1748369959875,12.5,178.99,178.98,56.34574552]
[1748369960661,12.5,178.99,178.98,21.14574552]
[1748369961961,12.5,178.99,178.96,67.5775]
[1748369962166,12.5,178.99,178.98,21.14574552]
[1748369962570,12.5,178.99,178.96,67.5775]
[1748369962880,12.5,178.99,178.98,21.14574552]
[1748369970286,12.5,178.99,178.98,110.14574552]
[1748369970884,12.5,178.99,178.98,124.18]
[1748369971190,13.05869042,178.99,178.97,35.18]
[1748369971571,13.05869042,178.99,178.96,26.0]
[1748369971769,12.5,178.99,178.96,26.0]
[1748369971963,12.5,178.99,178.97,21.14574552]
[1748369972775,12.5,178.99,178.98,21.14574552]
[1748369974892,12.5,178.99,178.98,26.73296196]
[1748369976273,12.5,178.99,178.98,35.26387889]
[1748369976480,12.5,178.99,178.98,56.40962441]
[1748369977075,12.5,178.99,178.98,35.26387889]
[1748369977293,12.5,178.99,178.98,75.05927327]
[1748369977493,12.5,178.99,178.98,53.91352775]
[1748369977691,12.5,178.99,178.98,34.70536196]
[1748369978888,12.5,178.99,178.98,29.11814552]
[1748369979271,12.5,178.99,178.98,13.55961644]
[1748369979577,12.5,178.99,178.98,64.27814552]
[1748369979777,12.5,178.99,178.98,29.11814552]
[1748369979980,12.5,178.99,178.98,64.27814552]
[1748369981567,12.5,178.99,178.98,26.0]
[1748369981773,12.5,178.99,178.98,82.30574552]
[1748369982293,12.5,178.99,178.98,47.14574552]
[1748369982499,12.5,178.99,178.98,82.30574552]
[1748369984795,12.5,178.99,178.98,47.14574552]
[1748369985096,12.5,178.99,178.98,82.30574552]
[1748369988097,12.5,178.99,178.98,47.14574552]
[1748369988288,12.5,178.99,178.98,82.30574552]
[1748369989892,13.05869042,178.99,178.98,26.0]
[1748369991297,13.05869042,178.99,178.94,104.9885]
[1748369991501,34.20443594,178.99,178.94,119.58574552]
[1748369991678,34.20443594,178.99,178.94,180.74574552]
[1748369992306,34.20443594,178.99,178.94,145.58574552]
[1748369992496,34.20443594,178.99,178.94,180.74574552]
[1748369993689,34.20443594,178.99,178.94,145.58574552]
[1748369993894,34.20443594,178.99,178.94,26.0]
[1748369993895,21.14574552,178.97,178.94,26.0]
[1748369994295,21.14574552,178.98,178.94,26.0]
[1748369995213,21.14574552,178.97,178.94,26.0]
[1748369995509,21.14574552,178.97,178.92,35.16]
[1748369995510,0.55878408,178.96,178.92,56.30574552]
[1748369995808,0.55878408,178.96,178.92,21.14574552]
[1748369998187,21.7045296,178.96,178.9,26.0]
[1748369998496,21.14574552,178.95,178.9,47.14574552]
[1748369999614,0.55884654,178.94,178.9,47.14574552]
[1748370000111,0.55884654,178.94,178.9,26.0]
[1748370000293,21.70459206,178.94,178.9,21.14574552]
[1748370000998,21.70459206,178.94,178.89,47.14574552]
[1748370001808,21.14574552,178.93,178.89,47.14574552]
[1748370002205,0.558909,178.92,178.89,47.14574552]
[1748370003317,21.70465452,178.92,178.87,21.14574552]
[1748370003508,21.70465452,178.92,178.85,21.14574552]
[1748370003509,21.14574552,178.9,178.85,21.14574552]
[1748370003711,21.14574552,178.87,178.81,89.0]
[1748370003901,21.14574552,178.87,178.82,21.14574552]
[1748370004106,21.14574552,178.86,178.82,21.14574552]
[1748370004925,18.64964886,178.89,178.79,9.44]
[1748370005124,21.14574552,178.84,178.8,35.16]
[1748370005423,21.70490873,178.84,178.8,35.16]
[1748370005596,21.14574552,178.83,178.78,56.30574552]
[1748370005797,21.14574552,178.83,178.78,82.30574552]
[1748370006410,21.14574552,178.83,178.78,47.14574552]
[1748370006616,21.70493721,178.83,178.78,56.30574552]
[1748370006996,21.14574552,178.84,178.79,21.14574552]
[1748370008737,21.14574552,178.84,178.76,2.76565278]
[1748370008923,21.14574552,178.79,178.74,5.59470652]
[1748370009224,21.14574552,178.79,178.74,21.14574552]
[1748370009792,21.14574552,178.81,178.76,21.14574552]
[1748370010205,21.14574552,178.8,178.75,21.14574552]
[1748370010901,21.70504012,178.8,178.75,21.14574552]
[1748370012618,21.70504012,178.8,178.74,5.594668]
[1748370012820,21.70504012,178.8,178.75,21.14574552]
[1748370013125,21.14574552,178.78,178.74,35.18]
[1748370013326,21.14574552,178.78,178.74,56.32574552]
[1748370013622,0.5592946,178.8,178.74,56.32574552]
[1748370013623,21.14574552,178.79,178.74,56.32574552]
[1748370013816,21.14574552,178.79,178.74,21.14574552]
[1748370015223,21.70506548,178.79,178.74,21.14574552]
[1748370016623,21.14574552,178.81,178.76,21.14574552]
[1748370016828,21.14574552,178.81,178.74,5.59459586]
[1748370017131,21.14574552,178.81,178.76,21.14574552]
[1748370017634,21.70500769,178.81,178.76,21.14574552]
[1748370019033,21.70500769,178.81,178.74,94.59465858]
[1748370019221,21.14574552,178.79,178.74,89.0]
[1748370019415,21.14574552,178.79,178.74,110.14574552]
[1748370021433,21.14574552,178.79,178.74,89.0]
[1748370021434,0.55934668,178.78,178.74,89.0]
[1748370021738,0.55922156,178.82,178.75,21.14574552]
[1748370022036,21.14574552,178.81,178.76,21.14574552]
[1748370022411,21.14574552,178.8,178.74,89.0]
[1748370022611,21.14574552,178.8,178.75,21.14574552]
[1748370022919,21.14574552,178.81,178.76,21.14574552]
[1748370023137,21.70496708,178.82,178.77,21.14574552]
[1748370023328,21.14574552,178.81,178.76,21.14574552]
[1748370023516,0.55928411,178.8,178.76,21.14574552]
[1748370023714,0.55922156,178.82,178.78,21.14574552]
[1748370025312,0.55919934,178.83,178.79,21.14574552]
[1748370025715,0.55919934,178.83,178.8,21.14574552]
[1748370026841,0.55915902,178.84,178.8,21.14574552]
[1748370028629,21.70490454,178.84,178.79,21.14574552]
[1748370029134,21.70490454,178.84,178.78,35.18]
[1748370029135,21.14574552,178.83,178.78,35.18]
[1748370029320,21.14574552,178.82,178.78,35.18]
[1748370030435,0.55925283,178.81,178.78,35.18]
[1748370030763,21.14574552,178.79,178.75,9.42]
[1748370031047,21.14574552,178.79,178.74,62.50854552]
[1748370031444,21.14574552,178.77,178.72,90.5677]
[1748370031747,21.14574552,178.75,178.71,41.4268]
[1748370032053,21.14574552,178.75,178.71,6.2468]
[1748370032433,0.55947185,178.74,178.7,9.42]
[1748370032635,0.55947185,178.74,178.71,35.18]
[1748370032853,21.70521737,178.74,178.7,9.42]
[1748370033058,21.70521737,178.74,178.69,136.14574552]
[1748370033059,21.14574552,178.72,178.67,29.03274552]
[1748370033354,21.14574552,178.7,178.65,9.42]
[1748370033658,1.95815149,178.74,178.66,35.18]
[1748370033859,0.55940926,178.76,178.72,21.14574552]
[1748370034032,21.70513117,178.77,178.72,21.14574552]
[1748370034235,0.55938565,178.77,178.73,21.14574552]
[1748370034448,21.70506091,178.79,178.73,21.14574552]
[1748370034854,21.14574552,178.78,178.73,21.14574552]
[1748370035461,0.55931539,178.79,178.73,21.14574552]
[1748370035631,21.14574552,178.78,178.73,21.14574552]
[1748370036758,21.14574552,178.77,178.72,21.14574552]
[1748370036930,21.14574552,178.76,178.71,56.32574552]
[1748370037136,1.95771338,178.78,178.71,56.32574552]
[1748370037352,21.14574552,178.77,178.72,21.14574552]
[1748370037857,21.14574552,178.77,178.71,56.32574552]
[1748370038358,0.55940926,178.76,178.71,56.32574552]
[1748370038736,0.55940926,178.76,178.72,21.14574552]
[1748370040955,21.14574552,178.75,178.69,89.0]
[1748370041134,21.14574552,178.73,178.69,89.0]
[1748370041335,21.14574552,178.73,178.68,35.18]
[1748370041555,21.14574552,178.72,178.67,21.14574552]
[1748370041857,21.14574552,178.72,178.67,56.32574552]
[1748370042033,20.60758127,178.76,178.68,21.14574552]
[1748370042233,21.14574552,178.74,178.68,21.14574552]
[1748370043759,0.55950316,178.73,178.68,21.14574552]
[1748370044060,0.55950316,178.73,178.69,21.14574552]
[1748370045057,1.39833391,178.79,178.71,21.14574552]
[1748370045266,39.79539438,178.78,178.73,21.14574552]
[1748370045448,21.14574552,178.77,178.72,21.14574552]
[1748370045648,21.14574552,178.77,178.69,26.0]
[1748370045840,23.10367793,178.76,178.7,21.14574552]
[1748370046041,23.10367793,178.76,178.69,26.0]
[1748370046042,21.14574552,178.74,178.69,21.14574552]
[1748370046235,1.95793241,178.76,178.67,115.0]
[1748370046236,21.14574552,178.73,178.67,26.0]
[1748370046446,21.14574552,178.72,178.67,82.32574552]